fUST/lending_fUST_20240902
["ID","MTS","AMOUNT","RATE_DAILY","PERIOD"]
[336936947,1725251449524,-500.0,0.00024931,2]
[336936948,1725251449534,-516.62439597,0.00024931,2]
[336936949,1725251449544,-500.0,0.00024931,2]
[336936950,1725251449554,-500.0,0.00024931,2]
[336936951,1725251449563,-1007.38,0.00024931,2]
[336936952,1725251449573,-500.0,0.00024931,2]
[336936953,1725251449582,-500.0,0.00024931,2]
[336936954,1725251449591,-500.0,0.00024931,2]
[336936955,1725251449600,-500.0,0.00024931,2]
[336936956,1725251449610,-500.0,0.00024931,2]
[336936957,1725251449619,-500.0,0.00024931,2]
[336936958,1725251449628,-620.97,0.00024931,2]
[336936959,1725251449637,-1509.61,0.00024931,2]
[336936960,1725251449646,-500.0,0.00024931,2]
[336936961,1725251449656,-1083.2,0.00024931,2]
[336936962,1725251449665,-500.0,0.00024931,2]
[336936963,1725251449674,-1035.48,0.00024931,2]
[336936964,1725251449683,-500.0,0.00024931,2]
[336936965,1725251449691,-537.89,0.00024931,2]
[336936966,1725251449700,-500.0,0.00024931,2]
[336936967,1725251449709,-500.0,0.00024931,2]
[336936968,1725251449718,-2274.28,0.00024931,2]
[336936969,1725251449727,-500.0,0.00024931,2]
[336936970,1725251449737,-500.0,0.00024931,2]
[336936971,1725251449747,-796.12,0.00024931,2]
[336936972,1725251449880,-500.0,0.00024931,2]
[336936973,1725251449889,-9962.16,0.00024931,2]
[336936974,1725251449898,-500.0,0.00024931,2]
[336936975,1725251449907,-500.0,0.00024931,2]
[336936976,1725251449916,-1329.85,0.00024931,2]
[336936977,1725251449925,-1656.98,0.00024931,2]
[336936978,1725251449935,-1111.94,0.00024931,2]
[336936979,1725251449945,-502.42464154,0.00024931,2]
[336936980,1725251449954,-500.0,0.00024931,2]
[336936981,1725251449963,-1360.3,0.00024931,2]
[336936982,1725251449972,-500.0,0.00024931,2]
[336936983,1725251449981,-500.0,0.00024931,2]
[336936984,1725251449990,-711.23,0.00024931,2]
[336936985,1725251449999,-2142.68,0.00024931,2]
[336936986,1725251450009,-305.72984482,0.00024931,2]
[336936987,1725251450018,-500.0,0.00024931,2]
[336936988,1725251450027,-1193.68,0.00024931,2]
[336936989,1725251450038,-500.0,0.00024931,2]
[336936990,1725251450047,-500.0,0.00024931,2]
[336936991,1725251450057,-500.0,0.00024931,2]
[336936992,1725251450066,-848.01,0.00024931,2]
[336936993,1725251450075,-2067.24,0.00024931,2]
[336936994,1725251450084,-500.0,0.00024931,2]
[336936995,1725251450093,-517.04130698,0.00024931,2]
[336936996,1725251450102,-500.0,0.00024931,2]
[336936997,1725251450111,-1149.74,0.00024931,2]
[336936998,1725251450120,-500.0,0.00024931,2]
[336936999,1725251450130,-326.14200045,0.00024931,2]
[336937000,1725251450140,-1010.11,0.00024931,2]
[336937001,1725251450149,-500.0,0.00024931,2]
[336937002,1725251450158,-500.0,0.00024931,2]
[336937003,1725251450171,-500.0,0.00024931,2]
[336937004,1725251450180,-500.0,0.00024931,2]
[336937005,1725251450189,-1033.47,0.00024931,2]
[336937006,1725251450197,-600.82,0.00024931,2]
[336937007,1725251450207,-500.0,0.00024931,2]
[336937008,1725251450216,-500.0,0.00024931,2]
[336937009,1725251450225,-500.0,0.00024931,2]
[336937010,1725251450234,-503.17326192,0.00024931,2]
[336937011,1725251450245,-500.0,0.00024931,2]
[336937012,1725251450254,-500.0,0.00024931,2]
[336937013,1725251450263,-1203.26,0.00024931,2]
[336937014,1725251450272,-945.86,0.00024931,2]
[336937015,1725251450282,-500.0,0.00024931,2]
[336937016,1725251450291,-1698.92,0.00024931,2]
[336937017,1725251450300,-500.0,0.00024931,2]
[336937018,1725251450309,-729.96,0.00024931,2]
[336937019,1725251450318,-1298.62,0.00024931,2]
[336937020,1725251450327,-1464.13,0.00024931,2]
[336937021,1725251450336,-500.0,0.00024931,2]
[336937022,1725251450346,-3924.42,0.00024931,2]
[336937023,1725251450355,-500.0,0.00024931,2]
[336937024,1725251450363,-1011.67,0.00024931,2]
[336937025,1725251450372,-504.98,0.00024931,2]
[336937026,1725251450382,-843.27,0.00024931,2]
[336937027,1725251450391,-500.0,0.00024931,2]
[336937028,1725251450400,-500.0,0.00024931,2]
[336937029,1725251450410,-500.0,0.00024931,2]
[336937030,1725251450419,-855.71,0.00024931,2]
[336937031,1725251450428,-1183.88,0.00024931,2]
[336937032,1725251450438,-500.0,0.00024931,2]
[336937033,1725251450448,-1046.44,0.00024931,2]
[336937034,1725251450457,-500.0,0.00024931,2]
[336937035,1725251450466,-1080.42,0.00024931,2]
[336937036,1725251450475,-500.0,0.00024931,2]
[336937037,1725251450484,-719.1,0.00024931,2]
[336937038,1725251450493,-1027.65,0.00024931,2]
[336937039,1725251450502,-503.82,0.00024931,2]
[336937040,1725251450512,-500.0,0.00024931,2]
[336937041,1725251450521,-500.0,0.00024931,2]
[336937042,1725251450531,-6177.28,0.00024931,2]
[336937043,1725251450540,-675.33,0.00024931,2]
[336937044,1725251450550,-595.18,0.00024931,2]
[336937045,1725251450559,-500.0,0.00024931,2]
[336937046,1725251450569,-1330.46,0.00024931,2]
[336937047,1725251450578,-1195.62,0.00024931,2]
[336937048,1725251450587,-208.009147,0.00024931,7]
[336937049,1725251450596,-208.009147,0.00024931,7]
[336937050,1725251450606,-500.0,0.00024931,2]
[336937051,1725251450616,-208.009147,0.00024931,7]
[336937052,1725251450625,-208.009147,0.00024931,7]
[336937053,1725251450634,-500.0,0.00024931,2]
[336937054,1725251450644,-500.0,0.00024931,2]
[336937055,1725251450653,-1079.61,0.00024931,2]
[336937056,1725251450663,-500.0,0.00024931,2]
[336937057,1725251450672,-500.0,0.00024931,2]
[336937058,1725251450682,-500.0,0.00024931,2]
[336937059,1725251450691,-1496.39,0.00024931,2]
[336937060,1725251450700,-621.4,0.00024931,2]
[336937061,1725251450710,-500.0,0.00024931,2]
[336937062,1725251450719,-570.67,0.00024931,2]
[336937063,1725251450729,-502.90049717,0.00024931,2]
[336937064,1725251450739,-500.0,0.00024931,2]
[336937065,1725251450748,-6639.12,0.00024931,2]
[336937066,1725251450758,-1356.65,0.00024931,2]
[336937067,1725251450767,-500.0,0.00024931,2]
[336937068,1725251450776,-580.6195655,0.00024931,2]
[336937069,1725251450789,-2798.14,0.00024931,2]
[336937070,1725251450799,-2204.3,0.00024931,2]
[336937071,1725251450808,-1033.02,0.00024931,2]
[336937072,1725251450817,-500.0,0.00024931,2]
[336937073,1725251450826,-500.0,0.00024931,2]
[336937074,1725251450836,-500.0,0.00024931,2]
[336937075,1725251450845,-959.84,0.00024931,2]
[336937076,1725251450854,-1554.95,0.00024931,2]
[336937077,1725251450863,-540.76280674,0.00024931,2]
[336937078,1725251450873,-500.0,0.00024931,2]
[336937079,1725251450882,-500.0,0.00024931,2]
[336937080,1725251450892,-500.0,0.00024931,2]
[336937081,1725251450902,-500.0,0.00024931,2]
[336937082,1725251450912,-955.68,0.00024931,2]
[336937083,1725251450922,-500.0,0.00024931,2]
[336937084,1725251450931,-500.0,0.00024931,2]
[336937085,1725251450941,-539.55,0.00024931,2]
[336937086,1725251450950,-508.0095841,0.00024931,2]
[336937087,1725251450959,-500.0,0.00024931,2]
[336937088,1725251450969,-500.0,0.00024931,2]
[336937089,1725251450978,-1654.84,0.00024931,2]
[336937090,1725251450987,-500.0,0.00024931,2]
[336937091,1725251450996,-159.0,0.00024932,2]
[336937092,1725251451005,-757.140405,0.00024964,2]
[336937093,1725251451015,-194.387885,0.00024964,2]
[336937094,1725251451029,-218.416474,0.00024964,2]
[336937095,1725251451046,-190.360737,0.00024964,2]
[336937096,1725251451060,-214.722643,0.00024964,2]
[336937097,1725251451073,-228.71787951,0.00024968,2]
[336937098,1725251451086,-159.0,0.00025,2]
[336937099,1725251451098,-18883.34951249,0.00025,2]
[336937100,1725251451112,-503.59009378,0.00025,2]
[336937101,1725251451125,-160.0,0.00025,2]
[336937102,1725251451138,-158.843162,0.00025053,2]
[336937103,1725251451153,-244.82,0.00025105,7]
[336937104,1725251451170,-163.13613886,0.00025105,7]
[336937105,1725251451183,-163.13613886,0.00025105,7]
[336937106,1725251451196,-163.13613886,0.00025105,7]
[336937107,1725251451208,-163.13613886,0.00025105,7]
[336937108,1725251451222,-163.13613886,0.00025105,7]
[336937109,1725251451236,-246.59,0.00025105,7]
[336937110,1725251451250,-164.31142236,0.00025105,7]
[336937111,1725251451261,-164.31142236,0.00025105,7]
[336937112,1725251451274,-164.31142236,0.00025105,7]
[336937113,1725251451287,-164.31142236,0.00025105,7]
[336937114,1725251451300,-164.31142236,0.00025105,7]
[336937115,1725251451314,-228.71787951,0.00025105,2]
[336937116,1725251451328,-153.0,0.00025164,2]
[336937117,1725251451342,-153.0,0.00025164,2]
[336937118,1725251451357,-153.0,0.00025164,2]
[336937119,1725251451368,-153.0,0.00025164,2]
[336937120,1725251451379,-1327.68883132,0.00025195,3]
[336937121,1725251451390,-208.009147,0.00025195,7]
[336937122,1725251451403,-3000.0,0.000252,2]
[336937123,1725251451417,-500.0,0.00025204,2]
[336937124,1725251451429,-500.0,0.00025204,2]
[336937125,1725251451442,-500.0,0.00025204,2]
[336937126,1725251451454,-151.0,0.00025204,7]
[336937127,1725251451467,-756.32,0.00025204,2]
[336937128,1725251451479,-756.32,0.00025204,2]
[336937129,1725251451490,-756.32,0.00025204,2]
[336937130,1725251451501,-756.32,0.00025204,2]
[336937131,1725251451513,-756.39,0.00025204,2]
[336937132,1725251451525,-500.0,0.00025205,2]
[336937133,1725251451539,-500.0,0.00025205,2]
[336937134,1725251451550,-500.0,0.00025205,2]
[336937135,1725251451562,-500.0,0.00025205,2]
[336937136,1725251451575,-500.0,0.00025205,2]
[336937137,1725251451586,-500.0,0.00025205,2]
[336937138,1725251451596,-534.38,0.00025205,2]
[336937139,1725251451608,-585.03900597,0.00025205,2]
[336937140,1725251451618,-542.89,0.00025205,2]
[336937141,1725251451629,-500.0,0.00025205,2]
[336937142,1725251451640,-500.0,0.00025205,2]
[336937143,1725251451651,-500.0,0.00025205,2]
[336937144,1725251451662,-500.0,0.00025205,2]
[336937145,1725251451673,-500.0,0.00025205,2]
[336937146,1725251451684,-500.0,0.00025205,2]
[336937147,1725251451695,-513.83999368,0.00025205,2]
[336937148,1725251451706,-500.0,0.00025205,2]
[336937149,1725251451716,-500.0,0.00025205,2]
[336937150,1725251451728,-254.05366792,0.00025205,2]
[336937151,1725251451739,-500.0,0.00025205,2]
[336937152,1725251451750,-500.0,0.00025205,2]
[336937153,1725251451761,-151.0,0.00025205,7]
[336937154,1725251451772,-151.0,0.00025205,7]
[336937155,1725251451783,-500.0,0.00025205,2]
[336937156,1725251451795,-505.74595886,0.00025205,2]
[336937157,1725251451806,-500.0,0.00025205,2]
[336937158,1725251451818,-300.0,0.00025205,2]
[336937159,1725251451829,-500.0,0.00025205,2]
[336937160,1725251451840,-505.10251526,0.00025205,2]
[336937161,1725251451852,-500.0,0.00025205,2]
[336937162,1725251451863,-500.0,0.00025205,2]
[336937163,1725251451875,-500.0,0.00025205,2]
[336937164,1725251451886,-500.0,0.00025205,2]
[336937165,1725251451897,-500.0,0.00025205,2]
[336937166,1725251451909,-349.36606398,0.00025205,2]
[336937167,1725251451921,-500.0,0.00025205,2]
[336937168,1725251451933,-802.75,0.00025205,2]
[336937169,1725251451946,-500.0,0.00025205,2]
[336937170,1725251451959,-500.0,0.00025205,2]
[336937171,1725251451971,-500.0,0.00025205,2]
[336937172,1725251451982,-500.0,0.00025205,2]
[336937173,1725251451994,-500.0,0.00025205,2]
[336937174,1725251452005,-500.0,0.00025205,2]
[336937175,1725251452016,-500.0,0.00025205,2]
[336937176,1725251452028,-500.0,0.00025205,2]
[336937177,1725251452040,-500.0,0.00025205,2]
[336937178,1725251452051,-500.0,0.00025205,2]
[336937179,1725251452063,-964.11,0.00025205,2]
[336937180,1725251452075,-500.0,0.00025205,2]
[336937181,1725251452087,-500.0,0.00025205,2]
[336937182,1725251452101,-500.0,0.00025205,2]
[336937183,1725251452114,-211.74534788,0.00025205,2]
[336937184,1725251452126,-500.0,0.00025205,2]
[336937185,1725251452138,-500.0,0.00025205,2]
[336937186,1725251452149,-540.36,0.00025205,2]
[336937187,1725251452161,-500.0,0.00025205,2]
[336937188,1725251452174,-500.0,0.00025205,2]
[336937189,1725251452185,-583.55,0.00025205,2]
[336937190,1725251452196,-151.0,0.00025205,7]
[336937191,1725251452207,-151.0,0.00025205,7]
[336937192,1725251452218,-500.0,0.00025205,2]
[336937193,1725251452229,-500.0,0.00025205,2]
[336937194,1725251452240,-500.0,0.00025205,2]
[336937195,1725251452252,-710.05,0.00025205,2]
[336937196,1725251452263,-500.0,0.00025205,2]
[336937197,1725251452275,-573.45,0.00025205,2]
[336937198,1725251452287,-500.0,0.00025205,2]
[336937199,1725251452298,-500.0,0.00025205,2]
[336937200,1725251452310,-500.0,0.00025205,2]
[336937201,1725251452320,-481.14027326,0.00025205,2]
[336937202,1725251452329,-500.0,0.00025205,2]
[336937203,1725251452339,-500.0,0.00025205,2]
[336937204,1725251452348,-510.33048496,0.00025205,2]
[336937205,1725251452357,-500.0,0.00025205,2]
[336937206,1725251452366,-501.68855469,0.00025205,2]
[336937207,1725251452376,-505.12970038,0.00025205,2]
[336937208,1725251452385,-500.0,0.00025205,2]
[336937209,1725251452396,-500.0,0.00025205,2]
[336937210,1725251452405,-500.0,0.00025205,2]
[336937211,1725251452415,-500.0,0.00025205,2]
[336937212,1725251452425,-500.0,0.00025205,2]
[336937213,1725251452435,-500.0,0.00025205,2]
[336937214,1725251452444,-500.0,0.00025205,2]
[336937215,1725251452454,-500.0,0.00025205,2]
[336937216,1725251452464,-500.0,0.00025205,2]
[336937217,1725251452473,-500.0,0.00025205,2]
[336937218,1725251452674,-500.0,0.00025205,2]
[336937219,1725251452689,-500.0,0.00025205,2]
[336937220,1725251452701,-500.0,0.00025205,2]
[336937221,1725251452710,-1341.03,0.00025205,2]
[336937222,1725251452719,-615.2,0.00025205,2]
[336937223,1725251452728,-500.0,0.00025205,2]
[336937224,1725251452736,-500.0,0.00025205,2]
[336937225,1725251452745,-500.0,0.00025205,2]
[336937226,1725251452754,-500.0,0.00025205,2]
[336937227,1725251452764,-990.49,0.00025205,2]
[336937228,1725251452773,-529.99,0.00025205,2]
[336937229,1725251452782,-500.0,0.00025205,2]
[336937230,1725251452791,-500.0,0.00025205,2]
[336937231,1725251452800,-689.53,0.00025205,2]
[336937232,1725251452809,-500.0,0.00025205,2]
[336937233,1725251452818,-503.13671639,0.00025205,2]
[336937234,1725251452828,-550.85,0.00025205,2]
[336937235,1725251452837,-766.47,0.00025205,2]
[336937236,1725251452846,-500.0,0.00025205,2]
[336937237,1725251452855,-500.0,0.00025205,2]
[336937238,1725251452864,-500.0,0.00025205,2]
[336937239,1725251452873,-500.0,0.00025205,2]
[336937240,1725251452882,-500.0,0.00025205,2]
[336937241,1725251452890,-500.0,0.00025205,2]
[336937242,1725251452900,-506.73489142,0.00025205,2]
[336937243,1725251452909,-500.0,0.00025205,2]
[336937244,1725251452917,-500.0,0.00025205,2]
[336937245,1725251452926,-500.0,0.00025205,2]
[336937246,1725251452935,-500.0,0.00025205,2]
[336937247,1725251452944,-500.0,0.00025205,2]
[336937248,1725251452953,-500.0,0.00025205,2]
[336937249,1725251452962,-500.0,0.00025205,2]
[336937250,1725251452972,-500.0,0.00025205,2]
[336937251,1725251452980,-500.0,0.00025205,2]
[336937252,1725251452989,-500.0,0.00025205,2]
[336937253,1725251452999,-505.35678504,0.00025205,2]
[336937254,1725251453008,-602.36,0.00025205,2]
[336937255,1725251453017,-756.39,0.00025205,2]
[336937256,1725251453026,-511.89508418,0.00025205,2]
[336937257,1725251453035,-791.07,0.00025205,2]
[336937258,1725251453044,-309.44318553,0.00025205,2]
[336937259,1725251453053,-713.88,0.00025205,2]
[336937260,1725251453062,-500.0,0.00025205,2]
[336937261,1725251453071,-500.0,0.00025205,2]
[336937262,1725251453079,-500.0,0.00025205,2]
[336937263,1725251453088,-682.29,0.00025205,2]
[336937264,1725251453098,-500.0,0.00025205,2]
[336937265,1725251453106,-500.0,0.00025205,2]
[336937266,1725251453115,-500.0,0.00025205,2]
[336937267,1725251453124,-500.0,0.00025205,2]
[336937268,1725251453133,-540.97,0.00025205,2]
[336937269,1725251453142,-500.0,0.00025205,2]
[336937270,1725251453150,-500.0,0.00025205,2]
[336937271,1725251453160,-515.25116768,0.00025205,2]
[336937272,1725251453172,-500.0,0.00025205,2]
[336937273,1725251453182,-500.0,0.00025205,2]
[336937274,1725251453191,-500.0,0.00025205,2]
[336937275,1725251453199,-509.28993497,0.00025205,2]
[336937276,1725251453209,-500.0,0.00025205,2]
[336937277,1725251453218,-1398.6,0.00025205,2]
[336937278,1725251453227,-500.0,0.00025205,2]
[336937279,1725251453237,-1127.04,0.00025205,2]
[336937280,1725251453246,-500.0,0.00025205,2]
[336937281,1725251453255,-500.0,0.00025205,2]
[336937282,1725251453265,-500.0,0.00025205,2]
[336937283,1725251453275,-610.81,0.00025205,2]
[336937284,1725251453284,-500.0,0.00025205,2]
[336937285,1725251453293,-500.0,0.00025205,2]
[336937286,1725251453302,-500.0,0.00025205,2]
[336937287,1725251453311,-950.4,0.00025205,2]
[336937288,1725251453321,-500.0,0.00025205,2]
[336937289,1725251453333,-500.0,0.00025205,2]
[336937290,1725251453344,-500.0,0.00025205,2]
[336937291,1725251453354,-151.0,0.00025205,7]
[336937292,1725251453365,-1883.86,0.00025205,2]
[336937293,1725251453374,-383.56486565,0.00025205,2]
[336937294,1725251453384,-500.10295904,0.00025205,2]
[336937295,1725251453394,-500.0,0.00025205,2]
[336937296,1725251453403,-500.0,0.00025205,2]
[336937297,1725251453411,-743.79,0.00025205,2]
[336937298,1725251453421,-500.0,0.00025205,2]
[336937299,1725251453431,-500.0,0.00025205,2]
[336937300,1725251453440,-500.0,0.00025205,2]
[336937301,1725251453450,-1007.38,0.00025205,2]
[336937302,1725251453460,-500.0,0.00025205,2]
[336937303,1725251453469,-500.0,0.00025205,2]
[336937304,1725251453478,-500.0,0.00025205,2]
[336937305,1725251453488,-500.0,0.00025205,2]
[336937306,1725251453498,-620.97,0.00025205,2]
[336937307,1725251453507,-1509.61,0.00025205,2]
[336937308,1725251453517,-500.0,0.00025205,2]
[336937309,1725251453527,-1083.2,0.00025205,2]
[336937310,1725251453538,-500.0,0.00025205,2]
[336937311,1725251453547,-1035.48,0.00025205,2]
[336937312,1725251453557,-500.0,0.00025205,2]
[336937313,1725251453566,-537.89,0.00025205,2]
[336937314,1725251453575,-500.0,0.00025205,2]
[336937315,1725251453584,-500.0,0.00025205,2]
[336937316,1725251453594,-238.64696081,0.00025205,2]
[336937317,1725251454070,-500.0,0.00024657,2]
[336937318,1725251454080,-2035.63303919,0.00025205,2]
[336937319,1725251454090,-500.0,0.00025205,2]
[336937320,1725251454099,-796.12,0.00025205,2]
[336937321,1725251454109,-4705.47296081,0.00025205,2]
[336937322,1725251454121,-4938.40000001,0.00025205,2]
[336937325,1725252005900,174.361345,0.00014247,2]
[336937330,1725252354160,-162.331416,0.00023145,2]
[336937331,1725252354182,-162.634595,0.00023558,2]
[336937332,1725252354205,-162.634595,0.00023681,2]
[336937333,1725252354227,-162.634595,0.00023804,2]
[336937334,1725252354248,-295.52988334,0.00023836,2]
[336937335,1725252355099,-37.68208066,0.00023836,2]
[336937336,1725252355120,-162.634595,0.00023926,2]
[336937337,1725252355142,-2689.27809439,0.00024,2]
[336937339,1725252431092,-321.30416574,0.00024,2]
[336937340,1725252435117,-627.66664502,0.00024,2]
[336937341,1725252436127,-285.53052533,0.00024,2]
[336937342,1725252564109,-418.87152601,0.00023949,2]
[336937343,1725252564131,-303.92747399,0.00024,2]
[336937344,1725252606318,166.837941,0.00014247,2]
[336937368,1725252632547,-726.20672113,0.00024,2]
[336937376,1725252638778,-73046.0863744,0.00024,2]
[336937377,1725252638788,-162.634595,0.00024049,2]
[336937378,1725252638799,-162.634595,0.00024172,2]
[336937379,1725252638809,-162.634595,0.00024295,2]
[336937380,1725252638818,-162.634595,0.00024417,2]
[336937381,1725252638828,-162.634595,0.0002454,2]
[336937382,1725252638837,-987.5807431,0.00024557,2]
[336937383,1725252638846,-274.68903166,0.00024557,2]
[336937384,1725252638855,-153.0,0.000246,2]
[336937385,1725252638866,-2362.0,0.0002461,2]
[336937386,1725252638876,-300.0,0.00024656,2]
[336937387,1725252638886,-500.0,0.00024657,2]
[336937388,1725252638895,-500.0,0.00024657,2]
[336937389,1725252638905,-501.4242493,0.00024657,2]
[336937390,1725252638914,-500.0,0.00024657,2]
[336937391,1725252638924,-500.0,0.00024657,2]
[336937392,1725252638935,-500.0,0.00024657,2]
[336937393,1725252638945,-500.0,0.00024657,2]
[336937394,1725252638955,-500.0,0.00024657,2]
[336937395,1725252638965,-500.0,0.00024657,2]
[336937396,1725252638975,-500.0,0.00024657,2]
[336937397,1725252638984,-500.0,0.00024657,2]
[336937398,1725252638993,-500.0,0.00024657,2]
[336937399,1725252639005,-500.0,0.00024657,2]
[336937400,1725252639015,-500.0,0.00024657,2]
[336937401,1725252639027,-500.0,0.00024657,2]
[336937402,1725252639037,-500.0,0.00024657,2]
[336937403,1725252639047,-500.0,0.00024657,2]
[336937404,1725252639057,-500.0,0.00024657,2]
[336937405,1725252639066,-500.0,0.00024657,2]
[336937406,1725252639077,-500.0,0.00024657,2]
[336937407,1725252639086,-500.0,0.00024657,2]
[336937408,1725252639095,-500.0,0.00024657,2]
[336937409,1725252639105,-500.0,0.00024657,2]
[336937410,1725252639117,-500.0,0.00024657,2]
[336937411,1725252639126,-500.0,0.00024657,2]
[336937412,1725252639135,-500.0,0.00024657,2]
[336937413,1725252639145,-500.0,0.00024657,2]
[336937414,1725252639156,-500.0,0.00024657,2]
[336937415,1725252639166,-500.0,0.00024657,2]
[336937416,1725252639175,-500.0,0.00024657,2]
[336937417,1725252639187,-500.0,0.00024657,2]
[336937418,1725252639196,-500.0,0.00024657,2]
[336937419,1725252639206,-500.0,0.00024657,2]
[336937420,1725252639215,-443.52602092,0.00024657,2]
[336937421,1725252639224,-585.54,0.00024657,2]
[336937422,1725252639234,-500.0,0.00024657,2]
[336937423,1725252639245,-500.0,0.00024657,2]
[336937424,1725252639255,-500.0,0.00024657,2]
[336937425,1725252639265,-500.0,0.00024657,2]
[336937426,1725252639274,-572.3146325,0.00024657,2]
[336937427,1725252639285,-500.0,0.00024657,2]
[336937428,1725252639296,-500.0,0.00024657,2]
[336937429,1725252639306,-500.0,0.00024657,2]
[336937430,1725252639317,-503.04928506,0.00024657,2]
[336937431,1725252639328,-500.0,0.00024657,2]
[336937432,1725252639339,-500.0,0.00024657,2]
[336937433,1725252639348,-501.77048543,0.00024657,2]
[336937434,1725252639358,-500.0,0.00024657,2]
[336937435,1725252639367,-500.0,0.00024657,2]
[336937436,1725252639378,-500.0,0.00024657,2]
[336937437,1725252639388,-500.0,0.00024657,2]
[336937438,1725252639397,-500.0,0.00024657,2]
[336937439,1725252639407,-500.0,0.00024657,2]
[336937440,1725252639417,-506.20146004,0.00024657,2]
[336937441,1725252639427,-516.20079667,0.00024657,2]
[336937442,1725252639439,-500.0,0.00024657,2]
[336937443,1725252639450,-500.0,0.00024657,2]
[336937444,1725252639460,-500.0,0.00024657,2]
[336937445,1725252639470,-500.0,0.00024657,2]
[336937446,1725252639480,-500.0,0.00024657,2]
[336937447,1725252639489,-500.0,0.00024657,2]
[336937448,1725252639499,-633.77385658,0.00024657,4]
[336937449,1725252639508,-500.0,0.00024657,2]
[336937450,1725252639518,-500.0,0.00024657,2]
[336937451,1725252639527,-500.0,0.00024657,2]
[336937452,1725252639537,-500.0,0.00024657,2]
[336937453,1725252639547,-500.0,0.00024657,2]
[336937454,1725252639557,-500.0,0.00024657,2]
[336937455,1725252639567,-500.0,0.00024657,2]
[336937456,1725252639576,-500.0,0.00024657,2]
[336937457,1725252639585,-500.0,0.00024657,2]
[336937458,1725252639595,-312.22824934,0.00024657,2]
[336937459,1725252639606,-500.0,0.00024657,2]
[336937460,1725252639616,-500.0,0.00024657,2]
[336937461,1725252639625,-153.8158451,0.00024657,2]
[336937462,1725252639635,-500.0,0.00024657,2]
[336937463,1725252639644,-500.0,0.00024657,2]
[336937464,1725252639654,-500.0,0.00024657,2]
[336937465,1725252639664,-500.0,0.00024657,2]
[336937466,1725252639674,-500.0,0.00024657,2]
[336937467,1725252639685,-500.0,0.00024657,2]
[336937468,1725252639694,-500.0,0.00024657,2]
[336937469,1725252639703,-500.0,0.00024657,2]
[336937470,1725252639713,-767.55,0.00024657,2]
[336937471,1725252639723,-500.0,0.00024657,2]
[336937472,1725252639732,-500.0,0.00024657,2]
[336937473,1725252639741,-500.0,0.00024657,2]
[336937474,1725252639750,-502.96992128,0.00024657,2]
[336937475,1725252639761,-500.0,0.00024657,2]
[336937476,1725252639771,-500.0,0.00024657,2]
[336937477,1725252639781,-500.0,0.00024657,2]
[336937478,1725252639790,-500.0,0.00024657,2]
[336937479,1725252639799,-500.0,0.00024657,2]
[336937480,1725252639808,-500.0,0.00024657,2]
[336937481,1725252639818,-500.0,0.00024657,2]
[336937482,1725252639827,-500.0,0.00024657,2]
[336937483,1725252639836,-500.0,0.00024657,2]